lending/lending_fUSD_20240110
["ID","MTS","AMOUNT","RATE_DAILY","PERIOD"]
[311003809,1704853842387,-152.50260851,0.00031997,2]
[311003810,1704853842396,-489.46079746,0.00032,4]
[311003811,1704853842405,-1808.92375124,0.00032,4]
[311003812,1704853842415,-298.40382139,0.00032,4]
[311003813,1704853842425,-17684.43633144,0.00032,2]
[311003814,1704853842473,-27969.17085929,0.00032,2]
[311003815,1704853842485,-29424.54473904,0.00032,2]
[311003816,1704853842496,-1329.09933,0.00032,2]
[311003817,1704853843074,-405.16335932,0.00032,2]
[311003818,1704853843085,-3276.87080573,0.00032,2]
[311003819,1704853843112,-2342.98406815,0.00032,2]
[311003820,1704853843124,-1798.36029792,0.00032,2]
[311003833,1704853843400,-944.0487836,0.00032,2]
[311003842,1704853844174,-430.68871395,0.00024,2]
[311003843,1704853844183,-140.55559998,0.00032,2]
[311003844,1704853844194,-822.29078517,0.00032,2]
[311003845,1704853844217,-3404.64960228,0.00032,2]
[311003846,1704853844228,-1701.28707668,0.00032,2]
[311003847,1704853844238,-2403.1,0.00032,2]
[311003848,1704853844250,-3024.65159585,0.00032,2]
[311003849,1704853844261,-1237.33224934,0.00032,2]
[311003850,1704853844272,-13162.52870386,0.00032,2]
[311003851,1704853844283,-901.20461492,0.00032,2]
[311003852,1704853844295,-1081.53576279,0.00032,2]
[311003853,1704853844311,-1220.94535341,0.00032,2]
[311003854,1704853844364,-4298.20003319,0.00026999,2]
[311003855,1704853844373,-2852.97128481,0.00032,2]
[311003856,1704853844711,-1963.91394085,0.00032,2]
[311003876,1704853846445,-569.16689288,0.00025,2]
[311003879,1704853846558,-130.38237864,0.00025,2]
[311003880,1704853846569,-167.0,0.0003128,2]
[311003881,1704853846579,-169.52,0.00031799,2]
[311003882,1704853846588,-169.52,0.00031999,2]
[311003883,1704853846599,-4371.50070732,0.00032,2]
[311003884,1704853846623,-169.52,0.00031799,2]
[311003885,1704853846633,-1535.78673113,0.00031999,4]
[311003886,1704853846642,-6999.95980068,0.00032,2]
[311003887,1704853846653,-528652.5999994,0.00032,2]
[311003888,1704853846665,-7912.30079014,0.00032,2]
[311003889,1704853846676,-2844.74302818,0.00032,2]
[311003890,1704853846804,-2642.37535781,0.00032,2]
[311003892,1704853846816,-16064.34046825,0.00032,2]
[311003894,1704853846826,-261.39328919,0.00032,2]
[311003895,1704853846836,-600.0,0.00032,33]
[311003896,1704853846846,-3000.0,0.00032,2]
[311003897,1704853846855,-200.57023013,0.00032,2]
[311003898,1704853846865,-206.0,0.00032001,17]
[311003899,1704853846874,-336.19267129,0.00032009,5]
[311003900,1704853846885,-3346.620418,0.0003201,2]
[311003901,1704853846895,-1000.0,0.000321,2]
[311003902,1704853846904,-150.0,0.00032169,2]
[311003903,1704853846915,-150.0,0.00032208,2]
[311003904,1704853846925,-10126.70726129,0.00032275,4]
[311003905,1704853846937,-150.0,0.00032275,2]
[311003906,1704853846948,-167.0,0.00032313,2]
[311003907,1704853846957,-150.0,0.00032389,2]
[311003908,1704853846967,-169.52,0.00032402,2]
[311003909,1704853846977,-150.0,0.00032403,2]
[311003910,1704853846986,-150.0,0.00032421,2]
[311003911,1704853846995,-291.26968992,0.00032451,2]
[311003912,1704853847005,-151.0,0.00032451,4]
[311003913,1704853847015,-450.0,0.000325,3]
[311003914,1704853847025,-150.0,0.00032561,2]
[311003915,1704853847034,-150.0,0.00032565,2]
[311003916,1704853847047,-150.0,0.00032569,2]
[311003917,1704853847057,-506.0,0.00032584,5]
[311003918,1704853847067,-155.0,0.000326,4]
[311003919,1704853847077,-150.0,0.00032653,2]
[311003920,1704853847086,-150.0,0.00032665,2]
[311003921,1704853847097,-150.0,0.00032682,2]
[311003922,1704853847107,-150.0,0.00032722,2]
[311003923,1704853847117,-150.0,0.00032725,2]
[311003924,1704853847127,-150.0,0.00032765,2]
[311003925,1704853847136,-404.22,0.00032769,2]
[311003926,1704853847145,-666.46,0.00032771,2]
[311003927,1704853847155,-211.73245335,0.00032876,7]
[311003928,1704853847164,-532.71468518,0.00032876,2]
[311003929,1704853847173,-153.84,0.00032877,2]
[311003930,1704853847183,-151.0,0.00032877,7]
[311003931,1704853847192,-151.0,0.00032877,7]
[311003932,1704853847201,-332.279506,0.00032877,7]
[311003933,1704853847211,-332.279506,0.00032877,7]
[311003934,1704853847221,-332.279506,0.00032877,7]
[311003935,1704853847230,-332.279506,0.00032877,7]
[311003936,1704853847241,-151.0,0.00032877,7]
[311003937,1704853847250,-151.0,0.00032877,7]
[311003938,1704853847260,-151.0,0.00032877,7]
[311003939,1704853847270,-151.0,0.00032877,7]
[311003940,1704853847279,-151.0,0.00032877,7]
[311003941,1704853847289,-151.010712,0.00032877,7]
[311003942,1704853847300,-151.0,0.00032877,7]
[311003943,1704853847309,-151.0,0.00032877,7]
[311003944,1704853847318,-631.41,0.00032877,15]
[311003945,1704853847327,-151.0,0.00032877,7]
[311003946,1704853847336,-151.0,0.00032877,7]
[311003947,1704853847347,-151.0,0.00032877,7]
[311003948,1704853847356,-159.120713,0.00032877,7]
[311003949,1704853847365,-151.0,0.00032877,7]
[311003950,1704853847375,-851.332531,0.00032877,7]
[311003951,1704853847384,-851.332531,0.00032877,7]
[311003952,1704853847394,-151.0,0.00032877,7]
[311003953,1704853847403,-320.327408,0.00032877,7]
[311003954,1704853847412,-320.327408,0.00032877,7]
[311003955,1704853847421,-151.0,0.00032877,7]
[311003956,1704853847429,-151.0,0.00032877,7]
[311003957,1704853847439,-177.205679,0.00032877,7]
[311003958,1704853847448,-202.804065,0.00032877,7]
[311003959,1704853847457,-151.0,0.00032877,7]
[311003960,1704853847466,-151.0,0.00032877,7]
[311003961,1704853847475,-190.567144,0.00032877,7]
[311003962,1704853847484,-190.567144,0.00032877,7]
[311003963,1704853847493,-151.0,0.00032877,7]
[311003964,1704853847502,-281.224429,0.00032877,7]
[311003965,1704853847511,-247.210176,0.00032877,7]
[311003966,1704853847520,-247.210176,0.00032877,7]
[311003967,1704853847529,-155.879494,0.00032877,7]
[311003968,1704853847538,-969.22,0.00032879,2]
[311003969,1704853847549,-150.0,0.00032889,2]
[311003970,1704853847559,-910.0,0.000329,2]
[311003971,1704853847568,-150.0,0.00032973,2]
[311003972,1704853847576,-393.98124712,0.00033,2]
[311003973,1704853847586,-550.0,0.00033,3]
[311003974,1704853847595,-600.0,0.00033,34]
[311003975,1704853847604,-150.0,0.0003305,2]
[311003976,1704853847613,-150.0,0.00033058,2]
[311003977,1704853847623,-150.0,0.00033092,2]
[311003978,1704853847633,-151.0,0.00033114,2]
[311003979,1704853847642,-150.0,0.00033144,2]
[311003980,1704853847651,-200.0,0.0003315,7]
[311003981,1704853847661,-150.0,0.00033194,2]
[311003982,1704853847670,-150.0,0.00033213,2]
[311003983,1704853847679,-150.0,0.00033262,2]
[311003984,1704853847688,-167.0,0.00033345,2]
[311003985,1704853847698,-150.0,0.00033368,2]
[311003986,1704853847707,-182.0,0.00033389,2]
[311003987,1704853847717,-150.0,0.00033433,2]
[311003988,1704853847727,-10126.70726129,0.00033446,5]
[311003989,1704853847736,-452.5167963,0.00033469,2]
[311003990,1704853847745,-150.0,0.0003355,2]
[311003991,1704853847755,-345.33,0.0003356,2]
[311003992,1704853847764,-150.0,0.00033572,2]
[311003993,1704853847773,-150.0,0.00033613,2]
[311003994,1704853847783,-250.15273847,0.00033619,2]
[311003995,1704853847792,-150.0,0.00033647,2]
[311003996,1704853847802,-450.0,0.0003374,3]
[311003997,1704853847812,-150.0,0.00033742,2]
[311003998,1704853847822,-404.22,0.00033747,2]
[311003999,1704853847831,-153.84,0.0003379,2]
[311004000,1704853847840,-1000.0,0.000338,7]
[311004001,1704853847850,-336.19267129,0.000339,6]
[311004002,1704853847859,-199040.85378325,0.00033934,10]
[311004003,1704853857669,820.92017851,0.00022372,2]
[311004004,1704853884696,160.11483801,0.00024996,30]
[311004006,1704853893873,210.0,0.0002182,2]
[311004011,1704853929690,1000.0,0.000225,2]
[311004012,1704853955058,34425.3032,0.000225,2]
[311004013,1704853974386,82359.46856176,0.000225,2]
[311004014,1704853974408,17640.53143824,0.000225,2]
[311004015,1704854082274,157.20212345,0.00022489,2]
[311004016,1704854141273,721.1968,0.00022494,2]
[311004017,1704854202907,300.0,0.00022491,2]
[311004018,1704854233518,3197.79936034,0.00022494,2]
[311004019,1704854249505,1931.99859544,0.00022494,2]
[311004020,1704854363835,600.0,0.00028,30]
[311004021,1704854409825,600.0,0.0003,120]
[311004024,1704854850087,-421.49763438,0.00022544,2]
[311004082,1704855031526,-337.07173376,0.00022535,2]
[311004084,1704855031535,-269.56124623,0.00022535,2]
[311004086,1704855031545,-532.04233018,0.00022536,2]
[311004089,1704855031554,-2776.04739328,0.00022536,2]
[311004091,1704855031563,-155.0,0.00022537,2]
[311004093,1704855031572,-557.92988483,0.00022537,2]
[311004095,1704855031581,-562.83399691,0.00022537,2]
[311004101,1704855031637,-1740.24107507,0.00022537,2]
[311004102,1704855031646,-164.58146813,0.00022538,2]
[311004103,1704855031656,-160.64801508,0.00022559,2]
[311004104,1704855031665,-160.64801508,0.0002256,2]
[311004105,1704855031674,-155.221913,0.00022598,2]
[311004106,1704855031685,-568.64926137,0.00022598,2]
[311004107,1704855031694,-3909.77783461,0.00022666,2]
[311004108,1704855031703,-155.25866879,0.000228,2]
[311004109,1704855031713,-584.80702111,0.00022894,2]
[311004110,1704855031722,-918.01299561,0.00022895,2]
[311004111,1704855031731,-155.64221889,0.00022895,2]
[311004112,1704855031740,-260.03769165,0.00022895,2]
[311004113,1704855031750,-4632.74700899,0.00022895,2]
[311004114,1704855031760,-700.29317767,0.00022895,2]
[311004115,1704855031769,-543.06629287,0.00022895,2]
[311004116,1704855031779,-935.71331845,0.00022895,2]
[311004117,1704855031788,-155.88259276,0.00022895,2]
[311004118,1704855031797,-333.81342088,0.00022895,2]
[311004119,1704855031807,-339.37380178,0.00022895,2]
[311004120,1704855031816,-155.25469515,0.00022895,2]
[311004121,1704855031825,-287.09399687,0.00022895,2]
[311004122,1704855031835,-155.25174458,0.00022895,2]
[311004123,1704855031845,-342.84521505,0.00022895,2]
[311004124,1704855031854,-16302.91806042,0.00022895,2]
[311004125,1704855031864,-523.62089006,0.00022895,2]
[311004127,1704855031874,-225.05895395,0.00022895,2]
[311004129,1704855031883,-161.98768849,0.00022895,2]
[311004131,1704855031893,-3037.45346849,0.00022895,2]
[311004133,1704855031902,-636.03881403,0.00022895,2]
[311004135,1704855031911,-399.60080598,0.00022895,2]
[311004137,1704855031920,-2142.42466309,0.00022896,2]
[311004139,1704855031930,-220.916557,0.00022896,2]
[311004142,1704855031939,-174.54341484,0.00022896,2]
[311004145,1704855031948,-10730.3146562,0.00022896,2]
[311004148,1704855031958,-191.7774814,0.00022896,2]
[311004151,1704855031967,-464.09916005,0.00022896,2]
[311004154,1704855031976,-158.68197873,0.00022896,2]
[311004157,1704855031985,-369.37971526,0.00022897,2]
[311004159,1704855031994,-251.11091623,0.00022897,2]
[311004162,1704855032005,-6246.5355555,0.00022897,2]
[311004165,1704855032017,-27458.32919934,0.00022897,2]
[311004167,1704855032026,-150.0,0.00022898,2]
[311004169,1704855032036,-150.0,0.00022898,2]
[311004171,1704855032045,-1086.19063042,0.00022898,2]
[311004173,1704855032054,-155.43097899,0.00022898,2]
[311004175,1704855032063,-3633.87,0.00022899,2]
[311004177,1704855032074,-5223.79327068,0.000229,2]
[311004179,1704855032084,-9999.99,0.000229,2]
[311004181,1704855032094,-392.33,0.000229,2]
[311004183,1704855032103,-499.99,0.000229,2]
[311004185,1704855032113,-300.0,0.00022999,2]
[311004187,1704855032122,-300.0,0.00022999,2]
[311004189,1704855032131,-300.0,0.00022999,2]
[311004191,1704855032140,-300.0,0.00022999,2]
[311004193,1704855032149,-308.94686484,0.00022999,2]
[311004195,1704855032159,-734.64,0.00023022,2]
[311004197,1704855032168,-369.64,0.00023794,2]
[311004199,1704855032177,-200.80356946,0.00024,2]
[311004201,1704855032186,-187.4,0.00024066,2]
[311004204,1704855032195,-13611.3895,0.00024898,2]
[311004205,1704855032204,-3327.88751203,0.00024898,2]
[311004210,1704855032240,-446.48737761,0.00024898,2]
[311004213,1704855032252,-435.79844913,0.00024898,2]
[311004215,1704855032263,-1809.51341481,0.00024898,2]
[311004289,1704855038351,-1233.920222,0.00022894,2]
[311004291,1704855038362,-7982.74318123,0.00024898,2]
[311004295,1704855038396,-1387.09572098,0.00024898,2]
[311004296,1704855038408,-432.48055833,0.00024898,2]
[311004297,1704855038421,-892.56998588,0.00024898,2]
[311004298,1704855038430,-393.32580774,0.00024987,2]
[311004299,1704855038440,-866.20589014,0.00024996,2]
[311004300,1704855038450,-299.17561825,0.00024996,2]
[311004301,1704855038460,-1063.40603188,0.00024996,2]
[311004302,1704855038472,-1336.65631996,0.00024996,2]
[311004303,1704855038482,-7379.31109911,0.00024997,2]
[311004304,1704855038491,-155.0,0.00024997,2]
[311004305,1704855038501,-155.46930835,0.00024998,2]
[311004306,1704855038513,-156.40014034,0.00024998,2]
[311004307,1704855038523,-35635.6766152,0.00024998,2]
[311004308,1704855038533,-248.83539254,0.00024998,2]
[311004309,1704855038543,-313.79367498,0.00024999,2]
[311004310,1704855038554,-194.64081445,0.00025,2]
[311004311,1704855038563,-1581.63681732,0.00025,2]
[311004312,1704855038574,-322.11967009,0.00025,2]
[311004313,1704855038584,-201.6885411,0.00025,2]
[311004314,1704855038593,-1016.69878254,0.00025,2]
[311004315,1704855038603,-532.91052247,0.00025,2]
[311004316,1704855038614,-167.05182833,0.00025,2]
[311004317,1704855038625,-301.83191032,0.00025,2]
[311004318,1704855038635,-155.21970602,0.00025,2]
[311004319,1704855038645,-1246.60618459,0.00025,2]
[311004320,1704855038655,-350.0,0.00025,3]
[311004321,1704855038665,-210.0,0.00025188,2]
[311004322,1704855038675,-2000.0,0.00025592,2]
[311004323,1704855038685,-23880.0,0.00025602,2]
[311004324,1704855038695,-250.0,0.00025782,2]
[311004325,1704855038705,-1075.15,0.00025783,2]
[311004326,1704855038715,-844.82,0.00025814,2]
[311004327,1704855038725,-188.7,0.00025864,2]
[311004328,1704855038735,-1767.63,0.00025872,2]
[311004329,1704855038745,-384.52,0.00025884,2]
[311004330,1704855038757,-501.28063992,0.00025979,2]
[311004331,1704855038766,-369.64,0.00026058,2]
[311004332,1704855038777,-150.0,0.00026079,2]
[311004333,1704855038787,-713.59,0.0002621,2]
[311004334,1704855038798,-155.74,0.00026254,2]
[311004335,1704855038808,-442.3,0.00026312,2]
[311004336,1704855038818,-155.74,0.00026418,2]
[311004337,1704855038828,-442.3,0.00026451,2]
[311004338,1704855038838,-981.41,0.0002649,2]
[311004339,1704855038848,-6200.7,0.00026575,2]
[311004340,1704855038858,-11106.24,0.00026575,2]
[311004341,1704855038867,-155.74,0.00026582,2]
[311004342,1704855038878,-442.3,0.00026589,2]
[311004343,1704855038887,-164.25,0.00026681,2]
[311004344,1704855039258,-442.3,0.00026728,2]
[311004345,1704855039295,-155.74,0.00026746,2]
[311004346,1704855039305,-384.52,0.00026862,2]
[311004347,1704855039314,-442.3,0.00026866,2]
[311004348,1704855039324,-155.74,0.0002691,2]
[311004349,1704855039334,-501.28063989,0.00026959,2]
[311004350,1704855039343,-157.28,0.00026981,2]
[311004351,1704855039354,-161.98934211,0.00027,2]
[311004352,1704855039363,-400.0,0.00027,3]
[311004353,1704855039372,-442.3,0.00027005,2]
[311004354,1704855039381,-1075.15,0.00027072,2]
[311004355,1704855039391,-155.74,0.00027074,2]
[311004356,1704855039400,-442.3,0.00027143,2]
[311004357,1704855039409,-150.65,0.00027191,2]
[311004358,1704855039419,-155.74,0.00027238,2]
[311004359,1704855039429,-169.75,0.00027254,2]
[311004360,1704855039438,-442.3,0.00027282,2]
[311004361,1704855039448,-164.25,0.00027309,2]
[311004362,1704855039461,-250.0,0.00027397,2]
[311004363,1704855039471,-925.19,0.00027397,2]
[311004364,1704855039480,-250.0,0.000274,2]
[311004365,1704855039489,-155.74,0.00027403,2]
[311004366,1704855039499,-442.3,0.0002742,2]
[311004367,1704855039510,-675.94364293,0.000275,4]
[311004368,1704855039520,-1335.53,0.00027535,2]
[311004369,1704855039530,-925.19,0.00027556,2]
[311004370,1704855039541,-442.3,0.00027559,2]
[311004371,1704855039551,-155.74,0.00027567,2]
[311004372,1704855039560,-442.3,0.00027697,2]
[311004373,1704855039570,-925.19,0.00027714,2]
[311004374,1704855039579,-155.74,0.00027731,2]
[311004375,1704855039588,-442.3,0.00027836,2]
[311004376,1704855039598,-384.52,0.0002784,2]
[311004377,1704855039608,-925.19,0.00027872,2]
[311004378,1704855039617,-155.74,0.00027895,2]
[311004379,1704855039627,-164.25,0.00027936,2]
[311004380,1704855039636,-501.28063989,0.0002794,2]
[311004381,1704855039646,-442.3,0.00027974,2]
[311004382,1704855039656,-687.51052193,0.00028,2]
[311004383,1704855039666,-202.68612241,0.00028,2]
[311004384,1704855039675,-925.19,0.0002803,2]
[311004385,1704855039685,-155.74,0.00028059,2]
[311004386,1704855039694,-442.3,0.00028113,2]
[311004387,1704855039703,-925.19,0.00028189,2]
[311004388,1704855039713,-299.48,0.00028203,2]
[311004389,1704855039723,-1429.73,0.00028203,2]
[311004390,1704855039732,-155.74,0.00028223,2]
[311004391,1704855039742,-442.3,0.00028251,2]
[311004392,1704855039751,-369.64,0.00028322,2]
[311004393,1704855039761,-925.19,0.00028347,2]
[311004394,1704855039770,-1075.15,0.00028361,2]
[311004395,1704855039780,-155.74,0.00028387,2]
[311004396,1704855039790,-442.3,0.0002839,2]
[311004397,1704855039799,-925.19,0.00028505,2]
[311004398,1704855039809,-442.3,0.00028528,2]
[311004399,1704855039819,-155.74,0.00028551,2]
[311004400,1704855039828,-150.65,0.00028561,2]
[311004401,1704855039838,-164.25,0.00028563,2]
[311004402,1704855039847,-925.19,0.00028664,2]
[311004403,1704855039857,-442.3,0.00028667,2]
[311004404,1704855039866,-155.74,0.00028715,2]
[311004405,1704855039875,-442.3,0.00028805,2]
[311004406,1704855039885,-384.52,0.00028819,2]
[311004407,1704855039895,-925.19,0.00028822,2]
[311004408,1704855039904,-155.74,0.00028879,2]
[311004409,1704855039914,-501.28063989,0.0002892,2]
[311004410,1704855039923,-442.3,0.00028944,2]
[311004411,1704855039933,-502.29,0.00028961,2]
[311004412,1704855039943,-600.0,0.00029,30]
[311004413,1704855039953,-450.0,0.00029,3]
[311004414,1704855039962,-844.82,0.0002904,2]
[311004415,1704855039971,-164.25,0.00029191,2]
[311004416,1704855039980,-484.8619,0.000294,2]
[311004417,1704855039990,-1300.116,0.000294,2]
[311004418,1704855039999,-150.0,0.00029481,2]
[311004419,1704855040010,-19091.64966794,0.000295,2]
[311004420,1704855040019,-150.0,0.00029538,2]
[311004421,1704855040029,-1075.15,0.00029651,2]
[311004422,1704855040038,-150.0,0.00029756,2]
[311004423,1704855040048,-384.52,0.00029797,2]
[311004424,1704855040057,-195.63942812,0.000298,2]
[311004425,1704855040067,-327.42760564,0.000298,2]
[311004426,1704855040076,-981.41,0.00029802,2]
[311004427,1704855040085,-164.25,0.00029818,2]
[311004428,1704855040095,-169.53,0.00029899,2]
[311004429,1704855040104,-169.53,0.00029899,2]
[311004430,1704855040114,-169.53,0.00029899,2]
[311004431,1704855040123,-169.53,0.00029899,2]
[311004432,1704855040133,-8817.3093,0.000299,2]
[311004433,1704855040143,-417.2276,0.000299,2]
[311004434,1704855040152,-1000.0,0.000299,2]
[311004435,1704855040162,-501.28063989,0.000299,2]
[311004436,1704855040172,-22775.03725172,0.000299,2]
[311004437,1704855040181,-22775.03725161,0.000299,2]
[311004438,1704855040191,-350.89308281,0.000299,4]
[311004439,1704855040200,-22775.03725161,0.000299,2]
[311004440,1704855040210,-22775.03725161,0.000299,2]
[311004441,1704855040219,-22775.03725161,0.000299,2]
[311004442,1704855040228,-22775.03725161,0.000299,2]
[311004443,1704855040238,-22775.03725161,0.000299,2]
[311004444,1704855040247,-22775.03725161,0.000299,2]
[311004445,1704855040257,-150.0,0.00029905,2]
[311004446,1704855040267,-274.43076635,0.0003,4]
[311004447,1704855040277,-9620.2298148,0.0003,2]
[311004448,1704855040287,-18989.11801624,0.0003,4]
[311004449,1704855040297,-769.76626315,0.0003,4]
[311004450,1704855040307,-663.80282667,0.0003,4]
[311004451,1704855040317,-155.0,0.0003,2]
[311004452,1704855040326,-37489.57848614,0.0003,4]
[311004453,1704855040335,-791.57141352,0.0003,2]
[311004454,1704855040345,-600.0,0.0003,31]
[311004455,1704855040354,-200.0,0.0003,2]
[311004456,1704855040364,-682.04086269,0.0003,4]
[311004457,1704855040373,-155.0,0.0003,2]
[311004458,1704855040382,-502.29,0.00030015,2]
[311004459,1704855040392,-450.0,0.0003002,3]
[311004460,1704855040402,-150.0,0.00030057,2]
[311004461,1704855040413,-326.53251772,0.000301,4]
[311004462,1704855040422,-10000.0,0.00030137,2]
[311004463,1704855040432,-153.84,0.00030137,2]
[311004464,1704855040442,-22775.03725161,0.00030282,2]
[311004465,1704855040451,-164.25,0.00030445,2]
[311004466,1704855040461,-369.64,0.00030586,2]
[311004467,1704855040470,-22775.03725161,0.00030758,2]
[311004468,1704855040479,-384.52,0.00030776,2]
[311004469,1704855040488,-151.0,0.00030819,120]
[311004470,1704855040498,-350.89308275,0.0003082,5]
[311004471,1704855040509,-1075.15,0.0003094,2]
[311004472,1704855040518,-600.0,0.00031,30]
[311004473,1704855040527,-500.0,0.00031,3]
[311004474,1704855040538,-155.0,0.00031,2]
[311004475,1704855040547,-153.84,0.0003105,2]
[311004476,1704855040557,-502.29,0.0003107,2]
[311004477,1704855040566,-164.25,0.00031073,2]
[311004478,1704855040575,-150.0,0.00031094,2]
[311004479,1704855040585,-22775.03725161,0.00031233,2]
[311004480,1704855040595,-150.0,0.00031301,2]
[311004481,1704855040604,-43154.0,0.000314,2]
[311004482,1704855040614,-4076.0,0.000314,2]
[311004483,1704855040624,-151.0,0.00031448,30]
[311004484,1704855040633,-456.0,0.00031463,5]
[311004485,1704855040642,-500.0,0.000315,2]
[311004486,1704855040651,-426.51,0.00031507,2]
[311004487,1704855040661,-206.0,0.00031547,2]
[311004488,1704855040670,-208.0,0.00031547,2]
[311004489,1704855040680,-165.66,0.00031644,2]
[311004490,1704855040690,-150.0,0.00031687,2]
[311004491,1704855040700,-164.25,0.000317,2]
[311004492,1704855040709,-150.0,0.00031701,2]
[311004493,1704855040719,-17829.8643236,0.00031709,2]
[311004524,1704855042671,-2926.54114029,0.00031709,2]
[311004525,1704855042733,-2018.63178772,0.00031709,2]
[311004526,1704855042742,-350.89308275,0.00031739,5]
[311004527,1704855042752,-169.75,0.00031752,2]
[311004528,1704855042763,-384.52,0.00031754,2]
[311004529,1704855042772,-150.0,0.00031776,2]
[311004530,1704855042781,-159.56735226,0.00031798,4]
[311004531,1704855042791,-485.56715609,0.00031798,2]
[311004532,1704855042800,-4683.28628511,0.000318,2]
[311004533,1704855042810,-1040.73028558,0.0003188,2]
[311004534,1704855042819,-520.36514279,0.0003189,2]
[311004535,1704855042829,-3686.3751,0.0003189,2]
[311004536,1704855042839,-500.0,0.000319,2]
[311004537,1704855042849,-40696.75107004,0.000319,2]
[311004538,1704855042912,-431.07040158,0.00027397,2]
[311004585,1704855044038,-68.92959842,0.00027397,2]
[311004586,1704855044052,-195.40580397,0.00029999,2]
[311004628,1704855046499,-164.58146813,0.00027396,2]
[311004629,1704855046510,-263.42613187,0.00029999,2]
[311004630,1704855046580,-73.47837813,0.00029999,2]
[311004631,1704855046590,-588.17124154,0.00029999,2]
[311004632,1704855046600,-1679.34039407,0.00030137,2]
[311004633,1704855046638,-3810.11960593,0.00030137,2]
[311004634,1704855046647,-4032.77862207,0.00031899,4]
[311004635,1704855046658,-6950.31892996,0.000319,2]
[311004636,1704855046667,-150.0,0.0003191,2]
[311004637,1704855046677,-153.84,0.00031963,2]
[311004638,1704855046687,-152.50260852,0.00031997,2]
[311004639,1704855046697,-3941.2218509,0.00031998,2]
[311004640,1704855046707,-155.38320621,0.00031998,4]
[311004641,1704855046717,-244.43273418,0.00031998,4]
[311004642,1704855046726,-155.54077197,0.00031998,4]
[311004643,1704855046737,-1911.21380393,0.00031998,4]
[311004644,1704855046746,-2618.10012917,0.00031998,4]
[311004645,1704855046757,-684.20932914,0.00031999,4]
[311004647,1704855255304,493.1,0.0002225,2]
[311004649,1704855260176,163.19,0.00022472,2]
[311004650,1704855300700,1330.03,0.00022178,2]
[311004651,1704855301840,182.81,0.00022178,2]
[311004653,1704855312545,253.10364733,0.00022,2]
[311004660,1704855337811,165.91,0.00022262,2]
[311004663,1704855377073,2000.0,0.00022172,2]
[311004664,1704855388491,414.24,0.00020254,2]
[311004667,1704855479395,157.28,0.00022109,2]
[311004668,1704855481084,23900.0,0.00022109,2]
[311004669,1704855540114,582.64,0.00022038,2]
[311004670,1704855540358,582.64,0.00022154,2]
[311004671,1704855540755,582.64,0.0002227,2]
[311004672,1704855541327,582.64,0.00022386,2]
[311004673,1704855552175,155.0,0.00022501,2]
[311004674,1704855559775,757.72766232,0.00022501,2]
[311004675,1704855608757,1767.63,0.00021941,2]
[311004676,1704855609215,164.58146813,0.00022501,2]
[311004677,1704855629592,423.16,0.00022008,2]
[311004680,1704855763914,605.52,0.00021935,2]
[311004682,1704855831244,165.91,0.00022088,2]
[311004683,1704855863175,1335.53,0.0002212,2]
[311004684,1704855864160,393.52,0.00020027,2]
[311004685,1704855864370,393.52,0.00022291,2]
[311004688,1704855912005,1064.02,0.00021932,2]
[311004689,1704856027265,-582.64,0.00022502,2]
[311004690,1704856027288,-779.9316903,0.00022511,2]